bitfinex/quotes_ETHUSD_20240821
["timestamp","ask_amount","ask_price","bid_price","bid_amount"]
[1724272593272,7.63667,2646.5,2645.6,3.2325]
[1724272593480,3.7792,2646.1,2645.3,6.98509]
[1724272593984,3.77934,2646.0,2645.3,3.2049]
[1724272594188,1.58423525,2646.1,2645.3,7.683695]
[1724272595541,3.858,2645.9,2644.9,6.98567]
[1724272595831,1.58423525,2645.8,2644.9,6.98567]
[1724272596018,1.58423525,2645.8,2645.0,3.78058]
[1724272596358,5.36382525,2645.8,2644.9,6.98567]
[1724272597064,1.58423525,2645.7,2644.9,6.98567]
[1724272597270,5.36382525,2645.8,2644.9,8.062344]
[1724272597585,5.36382525,2645.8,2644.9,8.062334]
[1724272598111,1.58423525,2645.8,2645.0,3.7806]
[1724272598259,7.63748,2645.9,2645.0,3.7806]
[1724272598260,9.22171525,2645.9,2645.0,3.7806]
[1724272598674,1.58423525,2645.8,2645.0,3.7806]
[1724272598989,1.58423525,2646.0,2645.3,3.78027]
[1724272599508,4.58423525,2646.0,2645.3,3.78027]
[1724272599962,4.58423525,2646.0,2645.4,6.20044]
[1724272600162,4.58423525,2646.1,2645.4,2.4203]
[1724272600357,6.32781154,2646.1,2645.4,2.4203]
[1724272600661,6.32781154,2646.1,2645.4,6.20036]
[1724272601007,4.58423525,2646.1,2645.4,6.20036]
[1724272601576,1.58423525,2646.2,2645.5,3.77998]
[1724272601777,8.36318525,2646.3,2645.5,3.77998]
[1724272601983,8.36318525,2646.3,2645.5,3.8555699]
[1724272602318,8.36318525,2646.3,2645.5,4.86117589]
[1724272602659,0.39536812,2646.2,2645.5,4.86117589]
[1724272602906,1.97960337,2646.2,2645.5,4.86117589]
[1724272603076,5.75863337,2646.2,2645.5,4.86117589]
[1724272603278,9.53773337,2646.2,2645.5,1.00560599]
[1724272603482,5.62563479,2646.2,2645.4,6.20041]
[1724272604099,0.39536812,2646.2,2645.7,3.77968]
[1724272604301,0.39536812,2646.2,2645.6,3.77983]
[1724272605305,0.39536812,2646.2,2645.7,0.0750966]
[1724272605481,0.39536812,2646.2,2645.6,3.77983]
[1724272606767,0.39536812,2646.2,2645.7,0.07558659]
[1724272607567,0.39536812,2646.2,2645.7,0.46112825]
[1724272607729,0.39536812,2646.2,2645.7,0.38554166]
[1724272607929,0.39536812,2646.2,2645.8,6.31437]
[1724272608242,0.39536812,2646.2,2645.9,3.77938]
[1724272609010,0.39536812,2646.2,2645.8,10.09385]
[1724272609414,0.39536812,2646.2,2645.8,6.31437]
[1724272610079,0.39536812,2646.2,2646.0,3.7792]
[1724272610246,0.39536812,2646.2,2646.1,0.37792]
[1724272614971,0.39536812,2646.2,2646.1,10.4806]
[1724272615367,0.39536812,2646.2,2646.1,6.70146]
[1724272615777,6.1213,2646.8,2646.1,6.70146]
[1724272615932,0.39525864,2646.7,2646.1,10.4806]
[1724272616131,0.39525864,2646.7,2646.2,1.04806]
[1724272616834,0.39525864,2646.7,2646.1,4.15706]
[1724272617480,0.39525864,2646.7,2645.9,3.77935]
[1724272617679,4.17355864,2646.7,2645.9,3.77935]
[1724272617835,0.39525864,2646.7,2646.0,3.77928]
[1724272618233,0.39525864,2646.7,2645.9,3.77934]
[1724272618234,4.17356864,2646.7,2645.9,3.77934]
[1724272618447,0.39525864,2646.7,2646.0,3.77927]
[1724272618677,0.39525864,2646.7,2646.1,3.77911]
[1724272618884,0.39525864,2646.7,2646.0,3.7792]
[1724272619080,0.39525864,2646.7,2646.1,3.77914]
[1724272619286,0.39525864,2646.7,2646.2,3.77898]
[1724272619440,0.39525864,2646.7,2646.2,0.377898]
[1724272620186,0.39525864,2646.7,2646.2,4.156788]
[1724272620752,0.39525864,2646.7,2646.3,3.77885]
[1724272622487,0.39525864,2646.7,2646.2,0.377898]
[1724272622658,0.39525864,2646.7,2646.0,3.77928]
[1724272622995,0.39525864,2646.7,2646.2,3.77899]
[1724272623169,0.39525864,2646.7,2646.4,3.77864]
[1724272623538,0.39525864,2646.7,2646.3,3.77885]
[1724272624286,2.78185864,2646.7,2646.1,3.77906]
[1724272624486,6.56017864,2646.7,2646.0,4.711458]
[1724272624786,7.5940055,2646.7,2646.0,3.77918]
[1724272625094,3.8156855,2646.7,2646.1,3.77914]
[1724272625591,2.78185864,2646.7,2646.2,3.77889]
[1724272626548,2.78185864,2646.7,2646.2,7.55782]
[1724272626864,2.78185864,2646.7,2646.2,3.77889]
[1724272627445,2.78185864,2646.7,2646.0,3.77917]
[1724272627679,0.27818586,2646.6,2646.0,3.77917]
[1724272627885,4.05664586,2646.6,2645.9,3.77942]
[1724272628048,0.27818586,2646.6,2645.9,3.77936]
[1724272628418,6.56016864,2646.7,2645.9,4.195156]
[1724272628591,2.78185864,2646.7,2646.1,3.77911]
[1724272628893,0.39525864,2646.7,2646.2,3.77893]
[1724272629402,0.39525864,2646.7,2645.9,2.856536]
[1724272629403,0.39525864,2646.7,2645.9,6.635936]
[1724272629703,0.39525864,2646.7,2646.5,3.7785]
[1724272629844,0.39525864,2646.7,2646.5,4.53423]
[1724272630045,0.39525864,2646.7,2646.5,0.75573]
[1724272630248,0.39525864,2646.7,2646.1,3.77905]
[1724272630669,2.2778,2646.6,2646.0,3.7792]
[1724272631847,2.2778,2646.6,2646.1,3.77913]
[1724272635180,2.2778,2646.6,2646.1,3.77905]
[1724272636918,2.2778,2646.6,2646.2,3.779]
[1724272637121,0.39525864,2646.7,2646.4,7.55731]
[1724272637412,0.39525864,2646.7,2646.3,0.3779]
[1724272637413,0.39525864,2646.7,2646.6,3.77843]
[1724272638223,0.39525864,2646.7,2646.5,3.77843]
[1724272639485,0.39525864,2646.7,2646.5,7.55693]
[1724272639724,0.39525864,2646.7,2646.5,4.807613]
[1724272640358,0.39525864,2646.7,2646.6,3.77843]
[1724272640509,0.39525864,2646.7,2646.5,3.77857]
[1724272642356,0.39525864,2646.7,2646.5,7.55707]
[1724272642662,0.39525864,2646.7,2646.5,3.7785]
[1724272644665,0.39525864,2646.7,2646.3,4.15667]
[1724272644666,0.39525864,2646.7,2646.3,7.5575]
[1724272644815,0.39525864,2646.7,2645.5,8.2801424]
[1724272644816,2.3871,2646.6,2646.1,3.77904]
[1724272646265,2.3871,2646.6,2646.1,7.5581]
[1724272646416,2.3871,2646.6,2646.3,3.77884]
[1724272646614,0.39525864,2646.7,2646.3,3.77876]
[1724272646927,0.39525864,2646.7,2646.5,3.77857]
[1724272647126,0.39525864,2646.7,2646.5,7.55705]
[1724272647347,0.39525864,2646.7,2646.5,3.77848]
[1724272647545,0.39525864,2646.7,2646.6,3.77843]
[1724272648059,0.39525864,2646.7,2646.5,4.534204]
[1724272648242,0.39525864,2646.7,2646.6,3.77843]
[1724272648566,0.39525864,2646.7,2646.5,7.55696]
[1724272648772,0.39525864,2646.7,2646.3,3.77878]
[1724272648917,1.97949389,2646.7,2646.3,3.77878]
[1724272649116,1.97949389,2646.7,2646.3,4.534572]
[1724272649417,1.58423525,2646.6,2645.9,6.13632]
[1724272649762,1.58423525,2646.6,2645.9,3.77932]
[1724272649763,1.58423525,2646.4,2645.9,3.77932]
[1724272650320,1.58423525,2646.3,2645.9,3.77932]
[1724272650864,1.58423525,2646.3,2645.8,4.457519]
[1724272651668,1.58423525,2646.3,2645.9,3.77942]
[1724272652350,1.58423525,2646.3,2645.9,3.77934]
[1724272652735,1.58423525,2646.4,2645.9,3.77934]
[1724272652949,1.58423525,2646.4,2645.9,7.55867]
[1724272653164,1.58423525,2646.4,2646.0,3.77927]
[1724272653336,1.58423525,2646.3,2646.0,3.77927]
[1724272653729,0.00260617,2646.1,2646.0,3.77927]
[1724272655465,0.00260617,2646.1,2646.0,4.6029339]
[1724272656881,0.00260617,2646.1,2646.0,0.8236639]
[1724272657062,0.00260617,2646.1,2645.9,3.7794]
[1724272657264,0.00260617,2646.1,2645.8,0.677969]
[1724272657432,0.00260617,2646.1,2645.8,3.77946]
[1724272658427,0.00260617,2646.1,2645.6,2.357]
[1724272658627,0.00260617,2646.1,2646.0,3.77928]
[1724272660075,0.39788561,2646.1,2645.9,3.77942]
[1724272662761,0.39788561,2646.1,2645.7,3.77959]
[1724272662963,0.39788561,2646.1,2645.7,4.801149]
[1724272663165,0.39788561,2646.1,2645.8,3.77949]
[1724272664055,0.39788561,2646.1,2645.9,3.77942]
[1724272667195,0.39788561,2646.1,2645.9,3.77936]
[1724272671907,0.39788561,2646.1,2645.9,3.77935]
[1724272673654,2.4565,2646.0,2645.5,3.7799]
[1724272673914,6.23594,2645.9,2645.2,4.5705424]
[1724272674413,2.4565,2645.9,2645.3,3.78027]
[1724272674883,2.4565,2645.9,2645.3,3.78022]
[1724272675080,6.23595,2645.9,2645.2,0.7901424]
[1724272675285,0.39537291,2645.8,2645.4,3.78013]
[1724272675499,0.39537291,2645.8,2645.3,6.27587]
[1724272676712,0.39537291,2645.8,2645.2,5.52509213]
[1724272677909,4.17494291,2645.8,2645.2,1.36568213]
[1724272678113,4.17494291,2645.8,2645.2,0.7901424]
[1724272678280,0.39537291,2645.8,2645.2,0.7901424]
[1724272679614,0.39537291,2645.8,2645.1,3.78045]
[1724272679917,4.17503291,2645.8,2645.0,3.78062]
[1724272680136,4.17503291,2645.8,2645.1,3.0]
[1724272680137,5.75926816,2645.8,2645.1,3.0]
[1724272680274,5.75926816,2645.8,2645.1,6.78056]
[1724272680275,2.99828444,2645.8,2645.1,6.78056]
[1724272681816,1.41404919,2645.8,2645.1,6.78056]
[1724272682001,0.39537291,2645.8,2645.1,6.78056]
[1724272683120,4.17494291,2645.8,2645.1,6.78056]
[1724272683322,5.75917816,2645.8,2645.1,3.0]
[1724272683624,5.75917816,2645.8,2644.9,6.65536]
[1724272683625,2.2673,2645.6,2644.9,0.59136298]
[1724272683916,2.2673,2645.2,2644.5,3.78133]
[1724272684591,2.2673,2645.2,2644.6,3.78121]
[1724272684783,2.2673,2645.2,2644.7,3.78113]
[1724272685104,2.2673,2645.2,2644.7,4.537376]
[1724272686378,2.2673,2645.2,2644.7,4.537306]
[1724272690711,0.39540934,2645.1,2644.7,4.537306]
[1724272691244,0.39540934,2645.1,2644.8,6.05581]
[1724272691430,0.39540934,2645.1,2644.9,3.78078]
[1724272691609,0.39540934,2645.1,2645.0,0.983659]
[1724272691770,0.39540934,2645.1,2645.0,8.545079]
[1724272692798,2.2872,2645.6,2645.1,3.78052]
[1724272693002,2.68259804,2645.6,2645.1,3.78052]
[1724272693802,2.68259804,2645.6,2645.0,4.764369]
[1724272694099,2.68259804,2645.6,2645.1,0.4764369]
[1724272697766,2.2872,2645.5,2644.7,0.756246]
[1724272697964,2.2872,2645.3,2644.6,3.0]
[1724272698483,2.2872,2645.3,2644.6,6.78126]
[1724272698627,2.2872,2645.3,2644.7,0.96475922]
[1724272702056,2.2872,2645.3,2644.7,4.74586922]
[1724272702216,2.2872,2645.3,2644.7,0.96475922]
[1724272702423,2.2872,2645.3,2644.6,6.7812]
[1724272702625,2.2872,2645.3,2644.6,10.56238]
[1724272702870,2.2872,2645.3,2644.6,10.56239]
[1724272703171,2.2872,2645.3,2644.6,6.78118]
[1724272703669,2.2872,2645.3,2644.6,10.56238]
[1724272703852,2.2872,2645.3,2644.6,6.78118]
[1724272704246,2.2872,2645.3,2644.6,8.488636]
[1724272704428,2.2872,2645.3,2644.9,1.607]
[1724272708275,2.68262626,2645.3,2644.9,1.607]
[1724272716119,4.26686151,2645.3,2644.9,1.607]
[1724272716484,2.68262626,2645.3,2644.9,1.607]
[1724272717302,4.26686151,2645.3,2644.9,1.607]
[1724272717580,2.68262626,2645.3,2644.9,1.607]
[1724272717803,4.26686151,2645.3,2644.9,1.607]
[1724272718276,4.26686151,2645.3,2644.7,1.986]
[1724272718474,5.07156166,2645.3,2644.7,1.607]
[1724272718734,1.58423525,2645.2,2644.7,1.607]
[1724272722342,1.58423525,2645.1,2644.7,1.607]
[1724272723317,4.65888932,2645.3,2644.7,1.986]
[1724272723318,1.58423525,2645.2,2644.7,1.986]
[1724272723553,1.58423525,2645.1,2644.7,1.986]
[1724272723756,1.58423525,2645.1,2644.7,2.862726]
[1724272727919,1.58423525,2645.1,2644.9,1.607]
[1724272728129,1.58423525,2645.2,2644.9,1.607]
[1724272728456,1.58282412,2645.1,2644.9,1.607]
[1724272728957,0.00260617,2645.0,2644.7,5.219726]
[1724272729104,0.00260617,2645.0,2644.8,1.5782146]
[1724272731011,0.39802923,2645.0,2644.8,1.5782146]
[1724272731763,0.39802923,2645.0,2644.9,1.607]
[1724272733303,0.39802923,2645.0,2644.9,11.54812]
[1724272733503,0.39802923,2645.0,2644.9,14.54812]
[1724272733843,0.39802923,2645.0,2644.9,17.21443806]
[1724272737368,0.39802923,2645.0,2644.9,17.59343806]
[1724272740977,0.39802923,2645.0,2644.9,22.07429806]
[1724272741292,0.00260617,2645.0,2644.9,21.57900658]
[1724272742162,0.00260617,2645.0,2644.9,19.60767178]
[1724272743087,0.00260617,2645.0,2644.9,18.29343806]
[1724272743457,0.00260617,2645.0,2644.9,19.97207124]
[1724272743681,0.00260617,2645.0,2644.9,21.57907124]
[1724272743876,0.00260617,2645.0,2644.9,22.36921364]
[1724272744095,0.00260617,2645.0,2644.9,21.57907124]
[1724272745687,0.00260617,2645.0,2644.9,18.00070052]
[1724272745894,0.00260617,2645.0,2644.9,18.29343806]
[1724272757870,2.49220617,2645.0,2644.9,2.11631806]
[1724272758077,2.49220617,2645.0,2644.3,4.4816]
[1724272758373,2.4896,2644.9,2644.0,2.4583]
[1724272758579,2.3491,2644.7,2644.3,1.607]
[1724272758872,2.3491,2644.6,2644.2,0.3787]
[1724272759430,2.3491,2644.6,2644.3,1.607]
[1724272761141,2.3491,2644.6,2644.2,0.3787]
[1724272761331,2.3557,2644.5,2644.2,0.3787]
[1724272762476,2.3557,2644.5,2644.1,1.607]
[1724272765071,2.3557,2644.5,2644.3,1.607]
[1724272765431,2.3557,2644.5,2644.1,1.607]
[1724272766130,2.3557,2644.5,2644.3,1.607]
[1724272766331,0.39546738,2644.4,2644.3,1.607]
[1724272766532,0.39546738,2644.4,2644.1,1.607]
[1724272771535,2.2868,2644.3,2643.9,0.59264656]
[1724272771954,2.2868,2644.2,2643.7,1.607]
[1724272776461,2.2868,2644.2,2643.5,3.78279]
[1724272776666,2.2868,2644.2,2643.7,1.607]
[1724272781882,2.3286,2644.0,2643.7,1.607]
[1724272783496,6.11232,2642.9,2642.8,0.59295521]
[1724272783794,3.9356,2642.9,2642.0,1.607]
[1724272783974,3.78431,2642.5,2642.0,1.607]
[1724272784174,3.78428,2642.6,2642.0,1.607]
[1724272784544,3.78428,2642.6,2641.8,0.11669274]
[1724272785299,2.3286,2642.9,2642.0,3.866]
[1724272785463,10.82261254,2643.9,2642.4,3.78443]
[1724272785464,6.11176,2643.3,2642.4,3.78443]
[1724272785642,6.11176,2643.3,2642.5,3.78426]
[1724272785643,2.3286,2643.3,2642.5,3.78426]
[1724272785985,2.3673,2643.7,2642.8,3.78374]
[1724272786284,3.78279,2643.6,2642.6,12.36277]
[1724272786485,7.56559,2643.6,2642.6,8.57872]
[1724272786685,3.78288,2643.5,2642.6,8.57872]
[1724272786870,3.78288,2643.5,2642.7,0.927872]
[1724272787075,3.78279,2643.6,2642.7,0.927872]
[1724272787274,3.78279,2643.6,2642.7,7.711862]
[1724272787445,3.78279,2643.6,2642.7,3.927872]
[1724272787650,3.78301,2643.4,2642.7,3.927872]
[1724272787851,7.56564,2643.6,2642.8,0.4856572]
[1724272788095,3.78276,2643.6,2642.7,0.927872]
[1724272788608,3.78308,2643.4,2642.7,0.927872]
[1724272790195,3.78302,2643.4,2642.4,0.59314984]
[1724272790355,3.866,2643.9,2642.1,3.78477]
[1724272790356,6.08801,2643.0,2642.1,3.78477]
[1724272791690,3.78375,2642.9,2642.1,3.78477]
[1724272792318,3.78375,2642.9,2642.0,4.48499]
[1724272792535,3.78375,2642.9,2642.1,0.55]
[1724272792975,7.56755,2642.9,2642.1,0.55]
[1724272793178,7.56755,2642.9,2642.1,1.053499]
[1724272793818,3.78375,2642.9,2642.1,1.053499]
[1724272794024,7.56756,2642.9,2642.1,1.053499]
[1724272794321,7.5676,2642.9,2642.1,1.053499]
[1724272794524,3.78375,2642.9,2642.1,1.053499]
[1724272794833,8.554718,2642.9,2642.1,1.053499]
[1724272794978,3.78375,2642.9,2642.1,1.053499]
[1724272795330,7.56756,2642.9,2642.1,1.053499]
[1724272795920,3.78386,2642.8,2642.1,1.053499]
[1724272796130,3.78386,2642.8,2642.1,0.55]
[1724272796307,3.78386,2642.8,2642.0,0.7]
[1724272796981,0.3954551,2642.7,2642.0,0.7]
[1724272797599,0.3954551,2642.7,2642.0,4.48499]
[1724272797786,0.3954551,2642.7,2642.1,0.486369]
[1724272797987,0.3954551,2642.7,2642.3,0.7]
[1724272798197,0.3954551,2642.7,2642.4,3.044]
[1724272798533,0.3954551,2642.7,2642.6,12.1343]
[1724272798703,0.3954551,2642.7,2642.6,13.063]
[1724272798906,6.05307,2643.9,2643.0,3.78348]
[1724272799142,6.05307,2643.9,2642.9,3.194]
[1724272799143,0.39539449,2643.3,2642.9,3.194]
[1724272799293,3.78194,2644.2,2643.2,0.7]
[1724272799500,2.2707,2644.6,2643.8,3.78241]
[1724272799691,3.78066,2645.1,2643.9,0.7]
[1724272800043,0.39535929,2644.1,2644.0,10.60828]
[1724272800196,2.2707,2645.0,2644.0,6.82614]
[1724272800397,2.66602107,2645.0,2644.0,6.82614]
[1724272800648,2.66602107,2645.0,2644.0,6.82606]
[1724272800949,3.31068918,2645.0,2644.0,6.82603]
[1724272801095,3.78086,2644.9,2644.0,4.33203]
[1724272802193,2.66602107,2645.0,2644.1,3.78187]
[1724272802393,6.44674107,2645.0,2644.0,4.33203]
[1724272802640,6.44674107,2645.0,2644.1,0.503203]
[1724272802641,3.7811,2644.8,2644.1,0.503203]
[1724272802793,3.7811,2644.8,2643.9,0.7]
[1724272803755,3.7811,2644.8,2643.8,4.609271]
[1724272804150,3.7811,2644.8,2643.8,4.230571]
[1724272804357,7.56222,2644.8,2643.8,4.230571]
[1724272804511,3.7811,2644.8,2643.8,4.230571]
[1724272804717,3.7811,2644.8,2643.9,0.6515771]
[1724272805428,3.78131,2644.6,2643.9,0.6515771]
[1724272806346,2.3532,2644.7,2643.9,0.6515771]
[1724272807065,6.13435,2644.7,2643.9,0.6515771]
[1724272807233,2.3532,2644.7,2644.0,3.78205]
[1724272807557,2.3532,2644.7,2644.0,0.44336271]
[1724272807760,2.3532,2644.7,2644.1,3.782]
[1724272807960,7.83532107,2645.0,2644.4,3.78147]
[1724272808315,7.83532107,2645.0,2644.2,3.78173]
[1724272809059,2.414,2644.9,2643.8,7.56473]
[1724272809243,4.80602211,2644.8,2643.6,0.7]
[1724272809556,4.80601211,2644.8,2643.9,3.78219]
[1724272810119,4.80601211,2644.8,2643.8,7.56464]
[1724272810556,1.02493211,2644.8,2643.8,3.78229]
[1724272810722,2.3122,2644.6,2643.8,3.78229]
[1724272810921,2.3122,2644.6,2643.6,3.78263]
[1724272811118,2.262,2644.2,2643.4,7.49]
[1724272811432,9.82586,2644.2,2643.2,3.78319]
[1724272812030,6.04391,2644.2,2643.1,6.13145]
[1724272812246,0.604391,2644.1,2643.3,3.78314]
[1724272812516,2.262,2644.2,2643.5,3.78278]
[1724272812952,2.262,2644.2,2643.6,3.78269]
[1724272813157,7.44,2644.4,2643.7,3.78256]
[1724272814379,2.262,2644.5,2643.6,2.3481]
[1724272814668,2.262,2644.5,2643.7,0.69141]
[1724272814837,0.39545632,2644.4,2644.0,3.7821]
[1724272815039,0.39545632,2644.4,2643.8,7.56466]
[1724272815235,0.39545632,2644.4,2643.9,3.0]
[1724272815651,0.39545632,2644.4,2644.0,3.78213]
[1724272815872,0.39545632,2644.4,2644.0,1.056444]
[1724272816035,0.39545632,2644.4,2643.9,3.0]
[1724272816630,0.39545632,2644.4,2643.9,6.78228]
[1724272817040,0.39545632,2644.4,2644.0,3.78211]
[1724272817856,0.39545632,2644.4,2643.9,3.0]
[1724272818382,0.39545632,2644.4,2644.0,3.78207]
[1724272818760,0.39545632,2644.4,2644.1,3.78199]
[1724272819279,0.39545632,2644.4,2644.2,3.78183]
[1724272819446,2.262,2644.8,2644.2,3.78183]
[1724272819647,2.65744202,2644.8,2644.2,3.78183]
[1724272819874,2.65744202,2644.8,2644.2,3.78176]
[1724272820430,2.65744202,2644.8,2644.0,3.78209]
[1724272820634,0.6438372,2644.7,2644.0,3.78209]
[1724272820835,2.65744202,2644.8,2644.0,3.78207]
[1724272821290,2.65744202,2644.8,2644.0,7.56414]
[1724272822264,2.65744202,2644.8,2644.0,3.78207]
[1724272822573,2.65744202,2644.8,2644.1,3.78199]
[1724272824977,6.43847202,2644.8,2644.0,3.78213]
[1724272825187,2.4389,2644.6,2644.0,3.78213]
[1724272826677,2.4389,2644.6,2644.0,7.5642]
[1724272826867,2.4389,2644.6,2644.1,3.78199]
[1724272827380,2.4389,2644.6,2644.0,3.78211]
[1724272828137,2.4389,2644.6,2644.0,7.56418]
[1724272828488,2.82452822,2644.6,2643.9,6.78227]
[1724272831722,2.82452822,2644.6,2644.0,3.78206]
[1724272833126,2.82452822,2644.6,2643.9,3.0]
[1724272833628,2.82452822,2644.6,2643.9,6.78228]
[1724272834730,6.60581822,2644.6,2643.9,3.0]
[1724272834941,6.60581822,2644.6,2643.5,3.78286]
[1724272834942,6.06804,2644.3,2643.5,3.78286]
[1724272835148,6.06804,2644.3,2643.1,1.037615]
[1724272835149,6.06838,2644.1,2643.0,4.48349]
[1724272835432,2.2863,2643.9,2643.1,0.678189]
[1724272835752,2.2863,2643.9,2643.4,3.78299]
[1724272835960,2.2863,2643.9,2643.4,7.56598]
[1724272836139,7.44,2644.1,2643.5,3.78273]
[1724272836351,7.44,2644.1,2643.5,3.78274]
[1724272836657,7.44,2644.1,2643.6,3.78261]
[1724272836807,2.4242,2644.2,2643.5,3.78274]
[1724272837006,2.4242,2644.2,2643.6,3.78262]
[1724272837209,3.78258,2643.7,2642.9,3.78365]
[1724272837459,2.4242,2643.6,2642.8,3.78377]
[1724272837756,3.78302,2643.4,2642.6,3.78407]
[1724272837961,2.4242,2643.6,2642.6,3.78407]
[1724272837962,4.403608,2643.5,2642.6,3.78407]
[1724272838251,3.78293,2643.5,2642.7,3.784]
[1724272839524,6.20706,2643.6,2642.8,3.78386]
[1724272839944,9.98992,2643.6,2642.7,3.78389]
[1724272840468,6.20706,2643.6,2642.7,7.56781]
[1724272840763,7.206052,2643.6,2642.7,8.64857]
[1724272841317,7.206052,2643.6,2642.8,3.78378]
[1724272842330,2.4242,2643.6,2643.2,3.7832]
[1724272842527,2.4242,2643.6,2642.8,1.0787]
[1724272842528,2.4242,2643.6,2642.8,2.9765]
[1724272842762,2.4242,2643.6,2642.9,3.0]
[1724272843126,2.4242,2643.6,2643.1,3.78342]
[1724272843532,2.4242,2643.6,2643.0,3.78351]
[1724272843728,2.4242,2643.6,2642.9,3.0]
[1724272843937,2.4242,2643.6,2643.1,3.78335]
[1724272844313,2.4242,2643.6,2643.0,3.78356]
[1724272844514,2.4242,2643.6,2642.9,6.78359]
[1724272845159,3.78362,2643.0,2642.0,0.7]
[1724272845360,6.498882,2642.9,2642.0,4.48489]
[1724272845931,3.78406,2642.7,2641.8,3.90190274]
[1724272846151,10.282732,2642.9,2641.9,3.78515]
[1724272846468,2.715062,2642.9,2642.1,3.7848]
[1724272846638,2.715062,2642.9,2642.2,3.0]
[1724272847182,2.3367,2642.9,2642.2,3.0]
[1724272847493,2.3367,2642.9,2642.2,3.78458]
[1724272847619,2.3367,2642.9,2642.2,7.5692]
[1724272847944,2.3367,2642.9,2642.2,3.78458]
[1724272848150,2.3367,2642.9,2642.3,3.78457]
[1724272849268,2.3367,2642.9,2642.2,3.78458]
[1724272849416,2.3367,2642.9,2642.3,0.786306]
[1724272850262,2.73223582,2642.9,2642.3,0.786306]
[1724272851037,2.73223582,2642.9,2642.2,3.78458]
[1724272851239,3.78388,2642.8,2642.1,3.0]
[1724272851735,3.78388,2642.8,2641.9,6.78509]
[1724272851947,3.78404,2642.7,2641.9,3.0]
[1724272852626,3.78404,2642.7,2641.9,6.78514]
[1724272852816,3.78404,2642.7,2641.9,8.17058036]
[1724272853665,6.51598582,2642.9,2642.0,3.785]
[1724272853864,6.51598582,2642.9,2642.1,3.0]
[1724272854870,3.7839,2642.8,2642.1,3.0]
[1724272855523,2.3104,2642.6,2642.1,3.0]
[1724272855767,2.3104,2642.6,2641.9,3.0]
[1724272855768,2.919841,2642.6,2641.9,3.0]
[1724272856156,2.919841,2642.6,2641.9,6.78514]
[1724272856469,2.919841,2642.6,2641.9,3.0]
[1724272856669,2.919841,2642.6,2641.9,6.78511]
[1724272857579,2.3104,2642.6,2641.9,3.0]
[1724272857734,2.3104,2642.6,2642.1,3.78484]
[1724272858072,2.3104,2642.6,2642.2,3.78469]
[1724272858223,2.3104,2642.6,2642.0,3.78491]
[1724272858224,2.3104,2642.6,2642.1,3.78483]
[1724272858623,2.3104,2642.6,2642.1,4.39566257]
[1724272858874,2.3104,2642.6,2642.2,3.78471]
[1724272859023,2.3104,2642.6,2642.2,3.7847]
[1724272859223,2.3104,2642.6,2642.2,3.78461]
[1724272859425,2.3104,2642.6,2642.1,0.61083257]
[1724272859635,2.3104,2642.6,2642.1,6.78484]
[1724272861431,2.3104,2642.6,2642.1,3.0]
[1724272861955,2.3104,2642.6,2642.1,6.78484]
[1724272863191,2.3104,2642.6,2641.8,0.11669274]
[1724272863391,3.7843,2642.5,2641.8,3.11669274]
[1724272863587,2.3212,2642.4,2641.8,0.11669274]
[1724272863931,6.10567,2642.4,2641.8,0.11669274]
[1724272864659,3.78475,2642.2,2641.8,0.11669274]
[1724272864858,6.20323,2642.1,2641.8,0.11669274]
[1724272865175,0.998796,2642.0,2641.8,0.11669274]
[1724272865684,1.3942722,2642.0,2641.8,0.11669274]
[1724272868354,0.3954762,2642.0,2641.8,0.11669274]
[1724272885367,4.1805562,2642.0,2641.8,0.11669274]
[1724272887121,0.3954762,2642.0,2641.8,0.11669274]
[1724272890235,4.1804862,2642.0,2641.8,0.11669274]
[1724272891516,5.76341958,2642.0,2641.8,0.11669274]
[1724272891714,4.1804862,2642.0,2641.8,0.11669274]
[1724272892336,5.57338223,2642.0,2641.8,0.11669274]
[1724272892537,1.78837223,2642.0,2641.8,0.11669274]
[1724272892720,0.3954762,2642.0,2641.8,0.11669274]
[1724272894735,1.97840958,2642.0,2641.8,0.11669274]
[1724272895057,0.3954762,2642.0,2641.8,0.11669274]
[1724272895389,1.97840958,2642.0,2641.8,0.11669274]
[1724272895692,0.3954762,2642.0,2641.8,0.11669274]
[1724272895888,1.97840958,2642.0,2641.8,0.11669274]
[1724272896089,0.3954762,2642.0,2641.8,0.11669274]
[1724272896742,1.97840958,2642.0,2641.8,0.11669274]
[1724272896948,2.75130893,2642.0,2641.8,0.11669274]
[1724272898293,1.97840958,2642.0,2641.8,0.11669274]
[1724272899995,1.58293338,2641.9,2641.8,0.11669274]
[1724272900520,1.97840958,2642.0,2641.8,0.11669274]
[1724272900717,1.97840958,2642.0,2641.8,2.56049274]
[1724272900904,0.3954762,2642.0,2641.8,2.56049274]
[1724272901107,0.3954762,2642.0,2641.8,3.5863111]
[1724272902826,0.3954762,2642.0,2641.9,3.78515]
[1724272902992,1.58293338,2642.4,2642.2,3.78472]
[1724272903355,1.58293338,2642.5,2642.0,3.78488]
[1724272903650,1.58293338,2642.5,2642.1,1.299842]
[1724272905213,1.58293338,2642.5,2642.1,5.084682]
[1724272905957,1.58293338,2642.6,2642.2,6.2132]
[1724272906137,9.40831859,2642.7,2642.2,6.2132]
[1724272906138,9.02293338,2642.7,2642.3,4.6057442]
[1724272906650,7.44,2642.7,2642.3,4.6057442]
[1724272908628,7.44,2642.7,2642.5,2.4285]
[1724272908897,1.58293338,2643.0,2642.5,2.4285]
[1724272909069,1.58293338,2642.9,2642.5,2.4285]
[1724272911313,1.58293338,2643.0,2642.5,2.4285]
[1724272912682,8.48770665,2643.0,2642.3,2.4285]
[1724272912876,4.01223338,2642.9,2642.3,2.4285]
[1724272913078,5.36687338,2642.8,2642.3,2.4285]
[1724272913933,1.58293338,2642.8,2642.3,2.4285]
[1724272914069,1.96643886,2642.9,2642.4,0.621315]
[1724272914070,1.58293338,2642.9,2642.4,0.621315]